[Event "Titled Tuesday Blitz August 24 2021"]
[White "Nakamura, Hikaru"]
[Black "Molina, Roberto Junio Brito"]
[WhiteFideId "2016192"]
[BlackFideId "2109450"]
[WhiteElo "2900"]
[BlackElo "2402"]
[Result "1-0"]
[Round "04"]
[TimeControl "180+1"]
[Date "2021.08.24"]
[WhiteClock "0:00:35"]
[BlackClock "0:00:01"]

1. e4 {[%clk 0:03:00]}  c6 {[%clk 0:02:59]} 2. Nc3 {[%clk 0:03:00]}  d5 {[%clk 0:03:00]} 3. Nf3 {[%clk 0:03:01]}  dxe4 {[%clk 0:03:00]} 4. Nxe4 {[%clk 0:03:02]}  Bg4 {[%clk 0:03:00]} 5. h3 {[%clk 0:02:59]}  Bxf3 {[%clk 0:03:00]} 6. Qxf3 {[%clk 0:03:00]}  Nd7 {[%clk 0:03:00]} 7. d4 {[%clk 0:02:53]}  Ndf6 {[%clk 0:03:00]} 8. c3 {[%clk 0:02:43]}  Nxe4 {[%clk 0:03:00]} 9. Qxe4 {[%clk 0:02:44]}  Nf6 {[%clk 0:03:01]} 10. Qc2 {[%clk 0:02:43]}  Qd5 {[%clk 0:03:01]} 11. Be3 {[%clk 0:02:42]}  e6 {[%clk 0:03:00]} 12. a3 {[%clk 0:02:38]}  Be7 {[%clk 0:02:56]} 13. O-O-O {[%clk 0:02:38]}  b5 {[%clk 0:02:52]} 14. Rg1 {[%clk 0:02:35]}  a5 {[%clk 0:02:49]} 15. g4 {[%clk 0:02:35]}  Qd7 {[%clk 0:02:49]} 16. Kb1 {[%clk 0:02:31]}  Nd5 {[%clk 0:02:47]} 17. Bc1 {[%clk 0:02:30]}  Bd6 {[%clk 0:02:43]} 18. Bg2 {[%clk 0:02:21]}  O-O {[%clk 0:02:36]} 19. Be4 {[%clk 0:02:21]}  g6 {[%clk 0:02:35]} 20. Rd3 {[%clk 0:02:16]}  b4 {[%clk 0:02:18]} 21. c4 {[%clk 0:02:15]}  bxa3 {[%clk 0:02:18]} 22. cxd5 {[%clk 0:02:13]}  cxd5 {[%clk 0:02:18]} 23. Bf3 {[%clk 0:02:13]}  axb2 {[%clk 0:02:17]} 24. Bxb2 {[%clk 0:02:05]}  a4 {[%clk 0:02:14]} 25. Ka2 {[%clk 0:02:00]}  Rfc8 {[%clk 0:02:02]} 26. Rc3 {[%clk 0:01:59]}  a3 {[%clk 0:01:55]} 27. Ba1 {[%clk 0:01:58]}  Bb4 {[%clk 0:01:50]} 28. Rxc8+ {[%clk 0:01:58]}  Rxc8 {[%clk 0:01:51]} 29. Qb3 {[%clk 0:01:50]}  Bd6 {[%clk 0:01:39]} 30. Bc3 {[%clk 0:01:46]}  Qe7 {[%clk 0:01:32]} 31. g5 {[%clk 0:01:31]}  Qc7 {[%clk 0:01:02]} 32. Rc1 {[%clk 0:01:27]}  Bf4 {[%clk 0:00:51]} 33. Bd2 {[%clk 0:01:24]}  Qxc1 {[%clk 0:00:51]} 34. Bxc1 {[%clk 0:01:24]}  Bxc1 {[%clk 0:00:49]} 35. h4 {[%clk 0:01:22]}  Bb2 {[%clk 0:00:48]} 36. Qd3 {[%clk 0:01:09]}  Rc4 {[%clk 0:00:46]} 37. h5 {[%clk 0:01:03]}  Rxd4 {[%clk 0:00:42]} 38. Qe3 {[%clk 0:00:58]}  Rc4 {[%clk 0:00:34]} 39. h6 {[%clk 0:00:55]}  Rc8 {[%clk 0:00:24]} 40. Be2 {[%clk 0:00:52]}  Bc1 {[%clk 0:00:20]} 41. Qg3 {[%clk 0:00:47]}  Bb2 {[%clk 0:00:19]} 42. Bg4 {[%clk 0:00:42]}  d4 {[%clk 0:00:10]} 43. Bxe6 {[%clk 0:00:35]}  fxe6 {[%clk 0:00:04]} 44. Qe5 {[%clk 0:00:35]}  d3 {[%clk 0:00:01]} 45. Qxe6+ {[%clk 0:00:35]} 1-0


[Site "https://www.chess.com"]

[Event "Titled Tuesday Blitz August 24 2021"]
[White "Nilsen, Tobias Lang"]
[Black "Kavyev, Ruslan"]
[WhiteFideId "1521624"]
[BlackFideId "34110981"]
[WhiteElo "1975"]
[BlackElo "2172"]
[Result "1-0"]
[Round "04"]
[TimeControl "180+1"]
[Date "2021.08.24"]
[WhiteClock "0:02:00"]
[BlackClock "0:01:12"]

1. e4 {[%clk 0:03:00]}  d5 {[%clk 0:02:59]} 2. exd5 {[%clk 0:03:00]}  Nf6 {[%clk 0:03:00]} 3. Nf3 {[%clk 0:03:01]}  Bh3 {[%clk 0:03:00]} 4. gxh3 {[%clk 0:03:01]}  Qxd5 {[%clk 0:02:55]} 5. Nc3 {[%clk 0:03:00]}  Qf5 {[%clk 0:02:51]} 6. Bd3 {[%clk 0:02:58]}  Qxh3 {[%clk 0:02:48]} 7. Qe2 {[%clk 0:02:56]}  Nc6 {[%clk 0:02:48]} 8. Ne4 {[%clk 0:02:55]}  Nd5 {[%clk 0:02:47]} 9. Neg5 {[%clk 0:02:49]}  Qd7 {[%clk 0:02:45]} 10. Bc4 {[%clk 0:02:46]}  Ndb4 {[%clk 0:02:13]} 11. Bxf7+ {[%clk 0:02:36]}  Kd8 {[%clk 0:02:13]} 12. d3 {[%clk 0:02:36]}  e5 {[%clk 0:02:09]} 13. Bb3 {[%clk 0:02:32]}  b6 {[%clk 0:01:56]} 14. Nf7+ {[%clk 0:02:27]}  Kc8 {[%clk 0:01:56]} 15. Nxh8 {[%clk 0:02:27]}  Kb7 {[%clk 0:01:55]} 16. a3 {[%clk 0:02:26]}  Na6 {[%clk 0:01:55]} 17. Nf7 {[%clk 0:02:23]}  Nc5 {[%clk 0:01:54]} 18. Ba2 {[%clk 0:02:22]}  Re8 {[%clk 0:01:50]} 19. N7g5 {[%clk 0:02:21]}  Nd4 {[%clk 0:01:50]} 20. Nxd4 {[%clk 0:02:20]}  exd4 {[%clk 0:01:51]} 21. Ne4 {[%clk 0:02:20]}  Qf5 {[%clk 0:01:26]} 22. Nd6+ {[%clk 0:02:08]}  Bxd6 {[%clk 0:01:26]} 23. Qxe8 {[%clk 0:02:09]}  Qf3 {[%clk 0:01:25]} 24. Rf1 {[%clk 0:02:04]}  Bxh2 {[%clk 0:01:20]} 25. b4 {[%clk 0:02:01]}  Na4 {[%clk 0:01:12]} 26. Qe4+ {[%clk 0:02:00]} 1-0


[Site "https://www.chess.com"]

[Event "Titled Tuesday Blitz August 24 2021"]
[White "Orantes Taboada, Francisco"]
[Black "Sydoryka, Vladyslav"]
[WhiteFideId "22274758"]
[BlackFideId "14145928"]
[WhiteElo "2073"]
[BlackElo "2217"]
[Result "0-1"]
[Round "04"]
[TimeControl "180+1"]
[Date "2021.08.24"]
[WhiteClock "0:01:20"]
[BlackClock "0:00:07"]

1. Nf3 {[%clk 0:03:00]}  d5 {[%clk 0:02:55]} 2. g3 {[%clk 0:03:01]}  Bg4 {[%clk 0:02:56]} 3. Bg2 {[%clk 0:03:01]}  Nd7 {[%clk 0:02:56]} 4. d4 {[%clk 0:03:01]}  Ngf6 {[%clk 0:02:55]} 5. O-O {[%clk 0:03:00]}  c6 {[%clk 0:02:55]} 6. c4 {[%clk 0:02:58]}  e6 {[%clk 0:02:50]} 7. Nc3 {[%clk 0:02:59]}  Bxf3 {[%clk 0:02:41]} 8. Bxf3 {[%clk 0:02:55]}  dxc4 {[%clk 0:02:42]} 9. e4 {[%clk 0:02:47]}  Be7 {[%clk 0:02:41]} 10. Be3 {[%clk 0:02:44]}  O-O {[%clk 0:02:38]} 11. Qe2 {[%clk 0:02:42]}  Nb6 {[%clk 0:02:36]} 12. Rad1 {[%clk 0:02:41]}  Rc8 {[%clk 0:02:23]} 13. d5 {[%clk 0:02:34]}  cxd5 {[%clk 0:02:22]} 14. Bxb6 {[%clk 0:02:34]}  Qxb6 {[%clk 0:01:48]} 15. exd5 {[%clk 0:02:34]}  Rfd8 {[%clk 0:01:18]} 16. dxe6 {[%clk 0:02:31]}  fxe6 {[%clk 0:01:19]} 17. Rxd8+ {[%clk 0:02:27]}  Bxd8 {[%clk 0:01:14]} 18. Re1 {[%clk 0:02:25]}  Kf7 {[%clk 0:00:57]} 19. Bh5+ {[%clk 0:02:13]}  g6 {[%clk 0:00:43]} 20. Bg4 {[%clk 0:02:11]}  Nxg4 {[%clk 0:00:43]} 21. Qxg4 {[%clk 0:02:10]}  Bf6 {[%clk 0:00:43]} 22. Nd5 {[%clk 0:02:04]}  Qd6 {[%clk 0:00:32]} 23. Nxf6 {[%clk 0:01:59]}  Kxf6 {[%clk 0:00:33]} 24. Re4 {[%clk 0:01:55]}  Rc6 {[%clk 0:00:20]} 25. Rf4+ {[%clk 0:01:49]}  Kg7 {[%clk 0:00:14]} 26. Qg5 {[%clk 0:01:49]}  Qd1+ {[%clk 0:00:13]} 27. Kg2 {[%clk 0:01:47]}  Qd5+ {[%clk 0:00:14]} 28. Qxd5 {[%clk 0:01:46]}  exd5 {[%clk 0:00:15]} 29. Kf3 {[%clk 0:01:45]}  Rb6 {[%clk 0:00:14]} 30. Rd4 {[%clk 0:01:42]}  Rxb2 {[%clk 0:00:14]} 31. Rxd5 {[%clk 0:01:42]}  c3 {[%clk 0:00:13]} 32. Rc5 {[%clk 0:01:42]}  c2 {[%clk 0:00:13]} 33. a4 {[%clk 0:01:42]}  b6 {[%clk 0:00:09]} 34. Rc6 {[%clk 0:01:39]}  a6 {[%clk 0:00:08]} 35. Ke3 {[%clk 0:01:36]}  Ra2 {[%clk 0:00:04]} 36. Kd3 {[%clk 0:01:34]}  b5 {[%clk 0:00:03]} 37. axb5 {[%clk 0:01:34]}  axb5 {[%clk 0:00:04]} 38. Rxc2 {[%clk 0:01:34]}  Rxc2 {[%clk 0:00:04]} 39. Kxc2 {[%clk 0:01:35]}  Kf6 {[%clk 0:00:05]} 40. Kb3 {[%clk 0:01:35]}  Ke5 {[%clk 0:00:05]} 41. Kb4 {[%clk 0:01:35]}  Ke4 {[%clk 0:00:05]} 42. f4 {[%clk 0:01:34]}  Kf3 {[%clk 0:00:05]} 43. Kxb5 {[%clk 0:01:34]}  h5 {[%clk 0:00:05]} 44. Kc5 {[%clk 0:01:18]}  Kg2 {[%clk 0:00:05]} 45. Kd5 {[%clk 0:01:19]}  Kxh2 {[%clk 0:00:05]} 46. Ke5 {[%clk 0:01:19]}  Kxg3 {[%clk 0:00:06]} 47. Kf6 {[%clk 0:01:20]}  Kxf4 {[%clk 0:00:05]} 48. Kxg6 {[%clk 0:01:19]}  h4 {[%clk 0:00:06]} 49. Kh5 {[%clk 0:01:20]}  h3 {[%clk 0:00:07]} 0-1


[Site "https://www.chess.com"]

[Event "Titled Tuesday Blitz August 24 2021"]
[White "Perez Gormaz, Matias"]
[Black "Labussiere, Yago"]
[WhiteFideId "3406342"]
[BlackFideId "2186969"]
[WhiteElo "2352"]
[BlackElo "1857"]
[Result "1-0"]
[Round "04"]
[TimeControl "180+1"]
[Date "2021.08.24"]
[WhiteClock "0:00:02"]
[BlackClock "0:00:02"]

1. e4 {[%clk 0:03:00]}  c5 {[%clk 0:03:00]} 2. Nf3 {[%clk 0:03:01]}  d6 {[%clk 0:03:00]} 3. d4 {[%clk 0:03:00]}  cxd4 {[%clk 0:03:01]} 4. Nxd4 {[%clk 0:03:01]}  Nf6 {[%clk 0:03:02]} 5. Nc3 {[%clk 0:03:01]}  Nc6 {[%clk 0:03:03]} 6. Be2 {[%clk 0:03:00]}  e5 {[%clk 0:03:03]} 7. Nf3 {[%clk 0:03:00]}  Be7 {[%clk 0:03:02]} 8. O-O {[%clk 0:03:00]}  h6 {[%clk 0:03:03]} 9. Re1 {[%clk 0:03:00]}  O-O {[%clk 0:03:03]} 10. Bf1 {[%clk 0:03:00]}  Be6 {[%clk 0:03:03]} 11. Nd5 {[%clk 0:02:59]}  Rc8 {[%clk 0:02:48]} 12. c4 {[%clk 0:02:58]}  Bg4 {[%clk 0:02:32]} 13. Be2 {[%clk 0:02:45]}  Nxd5 {[%clk 0:02:22]} 14. cxd5 {[%clk 0:02:35]}  Bxf3 {[%clk 0:02:02]} 15. Bxf3 {[%clk 0:02:35]}  Nd4 {[%clk 0:02:00]} 16. Bg4 {[%clk 0:02:34]}  f5 {[%clk 0:01:36]} 17. exf5 {[%clk 0:02:29]}  Nc2 {[%clk 0:01:36]} 18. Bd2 {[%clk 0:01:37]}  Nxe1 {[%clk 0:01:31]} 19. Qxe1 {[%clk 0:01:34]}  Rc4 {[%clk 0:01:20]} 20. h3 {[%clk 0:01:31]}  Bf6 {[%clk 0:00:53]} 21. Qe3 {[%clk 0:01:02]}  e4 {[%clk 0:00:50]} 22. Qxa7 {[%clk 0:00:42]}  Rc2 {[%clk 0:00:35]} 23. Be3 {[%clk 0:00:41]}  Rxb2 {[%clk 0:00:34]} 24. Rc1 {[%clk 0:00:37]}  Be5 {[%clk 0:00:23]} 25. Qa4 {[%clk 0:00:23]}  Qa8 {[%clk 0:00:18]} 26. Qxe4 {[%clk 0:00:20]}  Qxa2 {[%clk 0:00:17]} 27. f6 {[%clk 0:00:15]}  Bxf6 {[%clk 0:00:05]} 28. Rc8 {[%clk 0:00:14]}  Rxc8 {[%clk 0:00:05]} 29. Qe6+ {[%clk 0:00:14]}  Kh7 {[%clk 0:00:03]} 30. Bf5+ {[%clk 0:00:14]}  g6 {[%clk 0:00:02]} 31. Qd7+ {[%clk 0:00:10]}  Bg7 {[%clk 0:00:01]} 32. Qxc8 {[%clk 0:00:02]}  Qa1+ {[%clk 0:00:02]} 33. Kh2 {[%clk 0:00:01]}  gxf5 {[%clk 0:00:03]} 34. Qxf5+ {[%clk 0:00:02]}  Kg8 {[%clk 0:00:03]} 35. Qe6+ {[%clk 0:00:01]}  Kf8 {[%clk 0:00:03]} 36. Qxd6+ {[%clk 0:00:02]}  Kf7 {[%clk 0:00:03]} 37. Qe6+ {[%clk 0:00:02]}  Kf8 {[%clk 0:00:02]} 38. Bc5# {[%clk 0:00:02]} 1-0


[Site "https://www.chess.com"]

[Event "Titled Tuesday Blitz August 24 2021"]
[White "Petrovskyi, Vadym"]
[Black "Biletskiy, Danylo"]
[WhiteFideId "14165210"]
[BlackFideId "14155419"]
[WhiteElo "2334"]
[BlackElo "2099"]
[Result "1/2-1/2"]
[Round "04"]
[TimeControl "180+1"]
[Date "2021.08.24"]
[WhiteClock "0:00:01"]
[BlackClock "0:00:14"]

1. e4 {[%clk 0:03:00]}  c5 {[%clk 0:03:00]} 2. Nf3 {[%clk 0:03:00]}  Nc6 {[%clk 0:03:00]} 3. d4 {[%clk 0:02:58]}  cxd4 {[%clk 0:03:00]} 4. Nxd4 {[%clk 0:02:59]}  g6 {[%clk 0:03:00]} 5. Nc3 {[%clk 0:02:57]}  Bg7 {[%clk 0:03:00]} 6. Be3 {[%clk 0:02:57]}  Nf6 {[%clk 0:03:00]} 7. Nxc6 {[%clk 0:02:56]}  bxc6 {[%clk 0:03:00]} 8. e5 {[%clk 0:02:56]}  Ng8 {[%clk 0:03:00]} 9. f4 {[%clk 0:02:57]}  Nh6 {[%clk 0:02:59]} 10. Qd2 {[%clk 0:02:56]}  O-O {[%clk 0:02:58]} 11. O-O-O {[%clk 0:02:56]}  d6 {[%clk 0:02:59]} 12. h3 {[%clk 0:02:56]}  Qa5 {[%clk 0:02:45]} 13. g4 {[%clk 0:02:53]}  dxe5 {[%clk 0:02:45]} 14. fxe5 {[%clk 0:02:46]}  Bxg4 {[%clk 0:02:44]} 15. hxg4 {[%clk 0:02:35]}  Nxg4 {[%clk 0:02:45]} 16. Bc4 {[%clk 0:02:14]}  Nxe3 {[%clk 0:02:39]} 17. Qxe3 {[%clk 0:02:13]}  Qxe5 {[%clk 0:02:32]} 18. Qh3 {[%clk 0:01:53]}  h5 {[%clk 0:02:25]} 19. Qf3 {[%clk 0:01:45]}  Qc5 {[%clk 0:01:54]} 20. Bb3 {[%clk 0:01:36]}  Bxc3 {[%clk 0:01:47]} 21. bxc3 {[%clk 0:01:36]}  a5 {[%clk 0:01:46]} 22. Rhg1 {[%clk 0:01:26]}  Kg7 {[%clk 0:01:40]} 23. a4 {[%clk 0:01:06]}  Rab8 {[%clk 0:01:37]} 24. c4 {[%clk 0:01:01]}  Qa3+ {[%clk 0:01:25]} 25. Kb1 {[%clk 0:00:57]}  Qxa4 {[%clk 0:01:21]} 26. Qc3+ {[%clk 0:00:51]}  Kh7 {[%clk 0:01:06]} 27. Rg5 {[%clk 0:00:32]}  Qb4 {[%clk 0:01:02]} 28. Qe5 {[%clk 0:00:32]}  f6 {[%clk 0:00:24]} 29. Rxh5+ {[%clk 0:00:31]}  Kg7 {[%clk 0:00:25]} 30. Qg3 {[%clk 0:00:17]}  a4 {[%clk 0:00:25]} 31. Rg1 {[%clk 0:00:16]}  Kf7 {[%clk 0:00:20]} 32. Qxg6+ {[%clk 0:00:16]}  Ke6 {[%clk 0:00:19]} 33. Qf5+ {[%clk 0:00:15]}  Kd6 {[%clk 0:00:18]} 34. Rd1+ {[%clk 0:00:13]}  Kc7 {[%clk 0:00:18]} 35. Qd7+ {[%clk 0:00:12]}  Kb6 {[%clk 0:00:19]} 36. c5+ {[%clk 0:00:12]}  Ka6 {[%clk 0:00:14]} 37. Qxc6+ {[%clk 0:00:12]}  Ka5 {[%clk 0:00:14]} 38. Qc7+ {[%clk 0:00:09]}  Ka6 {[%clk 0:00:14]} 39. Qc6+ {[%clk 0:00:08]}  Ka5 {[%clk 0:00:14]} 40. Qc7+ {[%clk 0:00:04]}  Ka6 {[%clk 0:00:14]} 41. Qc6+ {[%clk 0:00:01]} 1/2-1/2


[Site "https://www.chess.com"]

[Event "Titled Tuesday Blitz August 24 2021"]
[White "Pichot, Alan"]
[Black "Kekelidze, Mikheil"]
[WhiteFideId "110973"]
[BlackFideId "13600818"]
[WhiteElo "2622"]
[BlackElo "2387"]
[Result "0-1"]
[Round "04"]
[TimeControl "180+1"]
[Date "2021.08.24"]
[WhiteClock "0:00:10"]
[BlackClock "0:01:14"]

1. e4 {[%clk 0:03:00]}  c5 {[%clk 0:02:59]} 2. Nf3 {[%clk 0:02:58]}  e6 {[%clk 0:02:59]} 3. d4 {[%clk 0:02:57]}  cxd4 {[%clk 0:03:00]} 4. Nxd4 {[%clk 0:02:58]}  a6 {[%clk 0:03:00]} 5. Nc3 {[%clk 0:02:58]}  Qc7 {[%clk 0:03:00]} 6. Bd3 {[%clk 0:02:58]}  Nf6 {[%clk 0:03:00]} 7. f4 {[%clk 0:02:57]}  Bb4 {[%clk 0:02:59]} 8. Ne2 {[%clk 0:02:46]}  d6 {[%clk 0:02:47]} 9. Be3 {[%clk 0:02:44]}  Nbd7 {[%clk 0:02:43]} 10. a3 {[%clk 0:02:41]}  Bc5 {[%clk 0:02:43]} 11. Qd2 {[%clk 0:02:42]}  b5 {[%clk 0:02:38]} 12. O-O-O {[%clk 0:02:37]}  Bb7 {[%clk 0:02:37]} 13. Rhe1 {[%clk 0:02:15]}  O-O {[%clk 0:02:34]} 14. h3 {[%clk 0:02:11]}  b4 {[%clk 0:02:29]} 15. axb4 {[%clk 0:02:11]}  Bxb4 {[%clk 0:02:30]} 16. g4 {[%clk 0:01:55]}  Nc5 {[%clk 0:02:27]} 17. Bxc5 {[%clk 0:01:45]}  Qxc5 {[%clk 0:02:23]} 18. Kb1 {[%clk 0:01:17]}  Qa5 {[%clk 0:02:13]} 19. Qe3 {[%clk 0:01:14]}  Rfc8 {[%clk 0:02:12]} 20. g5 {[%clk 0:01:13]}  Nd7 {[%clk 0:02:11]} 21. h4 {[%clk 0:01:02]}  Rab8 {[%clk 0:02:08]} 22. Qd4 {[%clk 0:00:57]}  Bc6 {[%clk 0:01:41]} 23. Qc4 {[%clk 0:00:40]}  Ba4 {[%clk 0:01:27]} 24. Qd4 {[%clk 0:00:17]}  Rxc3 {[%clk 0:01:21]} 25. Nxc3 {[%clk 0:00:09]}  Bxc3 {[%clk 0:01:21]} 26. Qxd6 {[%clk 0:00:10]}  Rxb2+ {[%clk 0:01:15]} 27. Kc1 {[%clk 0:00:10]}  Ra2 {[%clk 0:01:14]} 0-1


[Site "https://www.chess.com"]

[Event "Titled Tuesday Blitz August 24 2021"]
[White "Postny, Evgeny"]
[Black "Song, Michael"]
[WhiteFideId "2804344"]
[BlackFideId "2613190"]
[WhiteElo "2521"]
[BlackElo "2274"]
[Result "1-0"]
[Round "04"]
[TimeControl "180+1"]
[Date "2021.08.24"]
[WhiteClock "0:00:25"]
[BlackClock "0:00:11"]

1. e4 {[%clk 0:03:00]}  e5 {[%clk 0:03:00]} 2. Nf3 {[%clk 0:02:59]}  Nc6 {[%clk 0:03:00]} 3. Bb5 {[%clk 0:02:59]}  Nf6 {[%clk 0:03:00]} 4. O-O {[%clk 0:02:58]}  Nxe4 {[%clk 0:03:00]} 5. d4 {[%clk 0:02:59]}  Nd6 {[%clk 0:02:59]} 6. Bxc6 {[%clk 0:02:59]}  dxc6 {[%clk 0:03:00]} 7. dxe5 {[%clk 0:03:00]}  Nf5 {[%clk 0:03:01]} 8. Qxd8+ {[%clk 0:03:00]}  Kxd8 {[%clk 0:03:02]} 9. Nc3 {[%clk 0:03:00]}  Bd7 {[%clk 0:03:02]} 10. Rd1 {[%clk 0:02:59]}  Kc8 {[%clk 0:02:55]} 11. h3 {[%clk 0:02:57]}  Be7 {[%clk 0:02:54]} 12. Bg5 {[%clk 0:02:54]}  b6 {[%clk 0:02:48]} 13. g4 {[%clk 0:02:51]}  h6 {[%clk 0:02:48]} 14. Bxe7 {[%clk 0:02:44]}  Nxe7 {[%clk 0:02:49]} 15. Kg2 {[%clk 0:02:30]}  c5 {[%clk 0:02:43]} 16. Kg3 {[%clk 0:02:30]}  Be6 {[%clk 0:02:34]} 17. Nd2 {[%clk 0:02:22]}  g5 {[%clk 0:02:29]} 18. Nf3 {[%clk 0:02:07]}  Kb7 {[%clk 0:02:23]} 19. Ne4 {[%clk 0:02:07]}  Ng6 {[%clk 0:02:20]} 20. Nf6 {[%clk 0:02:05]}  Rad8 {[%clk 0:02:16]} 21. b3 {[%clk 0:02:04]}  c4 {[%clk 0:02:03]} 22. Re1 {[%clk 0:01:47]}  a5 {[%clk 0:01:53]} 23. Re3 {[%clk 0:01:44]}  Kc6 {[%clk 0:01:49]} 24. h4 {[%clk 0:01:37]}  gxh4+ {[%clk 0:01:46]} 25. Nxh4 {[%clk 0:01:38]}  Nxh4 {[%clk 0:01:42]} 26. Kxh4 {[%clk 0:01:39]}  Rd2 {[%clk 0:01:38]} 27. f4 {[%clk 0:01:36]}  Rxc2 {[%clk 0:01:36]} 28. f5 {[%clk 0:01:34]}  Bd5 {[%clk 0:01:36]} 29. Rd1 {[%clk 0:01:17]}  cxb3 {[%clk 0:01:16]} 30. Nxd5 {[%clk 0:01:09]}  bxa2 {[%clk 0:01:14]} 31. Rc3+ {[%clk 0:01:08]}  Rxc3 {[%clk 0:01:13]} 32. Nxc3 {[%clk 0:01:08]}  Rd8 {[%clk 0:01:06]} 33. Rc1 {[%clk 0:01:05]}  b5 {[%clk 0:00:55]} 34. Nxa2+ {[%clk 0:01:03]}  Kb6 {[%clk 0:00:55]} 35. Kh5 {[%clk 0:00:56]}  b4 {[%clk 0:00:53]} 36. Kxh6 {[%clk 0:00:56]}  Rd2 {[%clk 0:00:53]} 37. Nc3 {[%clk 0:00:40]}  bxc3 {[%clk 0:00:39]} 38. Rxc3 {[%clk 0:00:41]}  c5 {[%clk 0:00:26]} 39. Kg7 {[%clk 0:00:39]}  Re2 {[%clk 0:00:23]} 40. Kxf7 {[%clk 0:00:33]}  Rxe5 {[%clk 0:00:23]} 41. Kf6 {[%clk 0:00:31]}  Re8 {[%clk 0:00:18]} 42. g5 {[%clk 0:00:30]}  Kb5 {[%clk 0:00:19]} 43. g6 {[%clk 0:00:30]}  Kb4 {[%clk 0:00:19]} 44. Rc1 {[%clk 0:00:30]}  c4 {[%clk 0:00:19]} 45. Kf7 {[%clk 0:00:30]}  Rc8 {[%clk 0:00:19]} 46. g7 {[%clk 0:00:29]}  Rc7+ {[%clk 0:00:14]} 47. Kg6 {[%clk 0:00:29]}  Rc8 {[%clk 0:00:14]} 48. f6 {[%clk 0:00:29]}  Kb3 {[%clk 0:00:11]} 49. f7 {[%clk 0:00:29]}  Kb2 {[%clk 0:00:11]} 50. Rxc4 {[%clk 0:00:28]}  Rxc4 {[%clk 0:00:10]} 51. f8=Q {[%clk 0:00:28]}  a4 {[%clk 0:00:11]} 52. Qf2+ {[%clk 0:00:25]} 1-0


[Site "https://www.chess.com"]

[Event "Titled Tuesday Blitz August 24 2021"]
[White "Potapova, Margarita"]
[Black "Yoo, Christopher Woojin"]
[WhiteFideId "14126869"]
[BlackFideId "30909694"]
[WhiteElo "2214"]
[BlackElo "2105"]
[Result "0-1"]
[Round "04"]
[TimeControl "180+1"]
[Date "2021.08.24"]
[WhiteClock "0:00:04"]
[BlackClock "0:00:03"]

1. e4 {[%clk 0:02:59]}  c5 {[%clk 0:02:57]} 2. g3 {[%clk 0:02:59]}  d5 {[%clk 0:02:53]} 3. exd5 {[%clk 0:02:58]}  Qxd5 {[%clk 0:02:53]} 4. Nf3 {[%clk 0:02:59]}  Nc6 {[%clk 0:02:46]} 5. Bg2 {[%clk 0:02:39]}  Bg4 {[%clk 0:02:41]} 6. h3 {[%clk 0:02:32]}  Qe6+ {[%clk 0:02:40]} 7. Kf1 {[%clk 0:02:31]}  Bh5 {[%clk 0:02:40]} 8. d3 {[%clk 0:02:31]}  Qd7 {[%clk 0:02:35]} 9. Be3 {[%clk 0:02:31]}  e6 {[%clk 0:02:33]} 10. Na3 {[%clk 0:02:31]}  Nf6 {[%clk 0:02:31]} 11. Nc4 {[%clk 0:02:29]}  Nd5 {[%clk 0:02:31]} 12. g4 {[%clk 0:01:38]}  Nxe3+ {[%clk 0:02:22]} 13. fxe3 {[%clk 0:01:38]}  Bg6 {[%clk 0:02:21]} 14. Nfe5 {[%clk 0:01:38]}  Nxe5 {[%clk 0:02:19]} 15. Nxe5 {[%clk 0:01:39]}  Qc7 {[%clk 0:02:20]} 16. Qf3 {[%clk 0:01:13]}  Rb8 {[%clk 0:02:05]} 17. Nc4 {[%clk 0:01:00]}  Be7 {[%clk 0:02:00]} 18. a4 {[%clk 0:00:54]}  O-O {[%clk 0:01:56]} 19. h4 {[%clk 0:00:55]}  f5 {[%clk 0:01:55]} 20. g5 {[%clk 0:00:54]}  Bd6 {[%clk 0:01:09]} 21. h5 {[%clk 0:00:48]}  Be8 {[%clk 0:01:09]} 22. Ke2 {[%clk 0:00:32]}  Bc6 {[%clk 0:00:59]} 23. Qh3 {[%clk 0:00:32]}  Bxg2 {[%clk 0:00:58]} 24. Qxg2 {[%clk 0:00:33]}  f4 {[%clk 0:00:58]} 25. exf4 {[%clk 0:00:31]}  Bxf4 {[%clk 0:00:52]} 26. Raf1 {[%clk 0:00:31]}  Rf5 {[%clk 0:00:40]} 27. g6 {[%clk 0:00:28]}  h6 {[%clk 0:00:29]} 28. Qe4 {[%clk 0:00:28]}  Rf6 {[%clk 0:00:28]} 29. Rf3 {[%clk 0:00:27]}  Rbf8 {[%clk 0:00:27]} 30. Rhf1 {[%clk 0:00:27]}  Kh8 {[%clk 0:00:24]} 31. b3 {[%clk 0:00:25]}  b6 {[%clk 0:00:23]} 32. R3f2 {[%clk 0:00:15]}  e5 {[%clk 0:00:07]} 33. Rf3 {[%clk 0:00:15]}  Qd7 {[%clk 0:00:06]} 34. Ne3 {[%clk 0:00:07]}  Re8 {[%clk 0:00:02]} 35. Nd5 {[%clk 0:00:06]}  Rff8 {[%clk 0:00:02]} 36. Nc3 {[%clk 0:00:06]}  Qg4 {[%clk 0:00:02]} 37. Kd1 {[%clk 0:00:05]}  Qxh5 {[%clk 0:00:02]} 38. Nd5 {[%clk 0:00:05]}  Qg4 {[%clk 0:00:02]} 39. Nc7 {[%clk 0:00:04]}  Re7 {[%clk 0:00:02]} 40. Nd5 {[%clk 0:00:04]}  Re6 {[%clk 0:00:03]} 41. Nc7 {[%clk 0:00:04]}  Rxg6 {[%clk 0:00:02]} 42. Nd5 {[%clk 0:00:04]}  Rg5 {[%clk 0:00:02]} 43. Ne3 {[%clk 0:00:03]}  Qe6 {[%clk 0:00:02]} 44. Nc4 {[%clk 0:00:02]}  Qg4 {[%clk 0:00:02]} 45. Ne3 {[%clk 0:00:02]}  Qh5 {[%clk 0:00:02]} 46. Nc4 {[%clk 0:00:02]}  Rg2 {[%clk 0:00:02]} 47. Nd6 {[%clk 0:00:03]}  Qg6 {[%clk 0:00:01]} 48. Qxg6 {[%clk 0:00:02]}  Rxg6 {[%clk 0:00:02]} 49. Ne4 {[%clk 0:00:03]}  Re6 {[%clk 0:00:02]} 50. Nf2 {[%clk 0:00:03]}  Kg8 {[%clk 0:00:03]} 51. Nh3 {[%clk 0:00:03]}  Ref6 {[%clk 0:00:03]} 52. Ke2 {[%clk 0:00:04]}  g5 {[%clk 0:00:03]} 53. Nf2 {[%clk 0:00:04]}  Rf5 {[%clk 0:00:03]} 54. Ne4 {[%clk 0:00:05]}  Kg7 {[%clk 0:00:03]} 55. Nd6 {[%clk 0:00:05]}  R5f6 {[%clk 0:00:04]} 56. Ne4 {[%clk 0:00:05]}  R6f7 {[%clk 0:00:04]} 57. Rh3 {[%clk 0:00:05]}  Kg6 {[%clk 0:00:03]} 58. Rfh1 {[%clk 0:00:06]}  Rh7 {[%clk 0:00:04]} 59. Nd6 {[%clk 0:00:05]}  g4 {[%clk 0:00:03]} 60. Ne4 {[%clk 0:00:05]}  gxh3 {[%clk 0:00:02]} 61. Rxh3 {[%clk 0:00:04]}  h5 {[%clk 0:00:03]} 0-1


[Site "https://www.chess.com"]